fUST/lending_fUST_20250108
["ID","MTS","AMOUNT","RATE_DAILY","PERIOD"]
[348112830,1736326235775,-500.0,0.0002152,3]
[348112831,1736326235786,-1987.67943338,0.00021521,2]
[348112832,1736326235798,-193.71,0.00021521,3]
[348112833,1736326235807,-510.72,0.00021521,3]
[348112834,1736326235816,-285.17065218,0.00021521,2]
[348112835,1736326235826,-500.0,0.00021521,3]
[348112836,1736326235836,-500.0,0.00021521,3]
[348112837,1736326235846,-500.0,0.00021521,3]
[348112838,1736326235856,-500.0,0.00021521,3]
[348112839,1736326235866,-500.0,0.00021521,3]
[348112840,1736326235877,-500.0,0.00021521,3]
[348112841,1736326235888,-500.0,0.00021521,3]
[348112842,1736326235897,-500.0,0.00021521,3]
[348112843,1736326235907,-151.0,0.00021521,2]
[348112844,1736326235917,-500.0,0.00021521,3]
[348112845,1736326235927,-151.0,0.00021521,2]
[348112846,1736326235937,-500.0,0.00021521,3]
[348112847,1736326235947,-500.0,0.00021521,3]
[348112848,1736326235959,-500.0,0.00021521,3]
[348112849,1736326235969,-500.0,0.00021521,3]
[348112850,1736326235979,-500.0,0.00021521,3]
[348112851,1736326235987,-151.0,0.00021521,2]
[348112852,1736326235997,-500.0,0.00021521,3]
[348112853,1736326236006,-500.0,0.00021522,3]
[348112854,1736326236015,-506.91268819,0.00021522,3]
[348112855,1736326236025,-566.00056997,0.00021522,3]
[348112856,1736326236035,-500.0,0.00021522,3]
[348112857,1736326236044,-500.0,0.00021522,3]
[348112858,1736326236053,-500.0,0.00021522,3]
[348112859,1736326236062,-500.0,0.00021522,3]
[348112860,1736326236072,-504.16,0.00021522,3]
[348112861,1736326236081,-500.0,0.00021522,3]
[348112862,1736326236091,-500.0,0.00021522,3]
[348112863,1736326236100,-164.72345149,0.00021522,3]
[348112864,1736326236109,-500.0,0.00021522,3]
[348112865,1736326236118,-500.0,0.00021522,3]
[348112866,1736326236128,-161.306414,0.00021522,2]
[348112867,1736326236136,-500.0,0.00021522,3]
[348112868,1736326236145,-500.0,0.00021522,3]
[348112869,1736326236155,-505.38872059,0.00021522,3]
[348112870,1736326236164,-500.0,0.00021522,3]
[348112871,1736326236174,-500.0,0.00021522,3]
[348112872,1736326236183,-500.0,0.00021522,3]
[348112873,1736326236192,-500.0,0.00021522,3]
[348112874,1736326236201,-510.41590572,0.00021522,3]
[348112875,1736326236210,-538.07,0.00021522,3]
[348112876,1736326236219,-500.0,0.00021522,3]
[348112877,1736326236228,-500.0,0.00021522,3]
[348112878,1736326236237,-500.0,0.00021522,3]
[348112879,1736326236247,-500.0,0.00021522,3]
[348112880,1736326236257,-500.0,0.00021522,3]
[348112881,1736326236267,-500.0,0.00021522,3]
[348112882,1736326236277,-509.74865135,0.00021522,3]
[348112883,1736326236287,-500.0,0.00021522,3]
[348112884,1736326236297,-6781.73,0.00021522,3]
[348112885,1736326236307,-247.83,0.00021522,3]
[348112886,1736326236316,-500.0,0.00021522,3]
[348112887,1736326236326,-500.0,0.00021522,3]
[348112888,1736326236335,-263.57786502,0.00021522,3]
[348112889,1736326236344,-500.0,0.00021522,3]
[348112890,1736326236353,-500.0,0.00021522,3]
[348112891,1736326236363,-500.0,0.00021522,3]
[348112892,1736326236372,-10105.38280118,0.00021598,2]
[348112893,1736326236381,-1987.67943338,0.00021624,2]
[348112894,1736326236389,-10105.38280118,0.00021647,2]
[348112895,1736326236399,-1987.67943338,0.00021728,2]
[348112896,1736326236408,-1004.46336089,0.00021754,2]
[348112897,1736326236417,-500.0,0.00021794,3]
[348112898,1736326236426,-510.72,0.00021795,3]
[348112899,1736326236435,-308.76,0.00021795,3]
[348112900,1736326236444,-500.0,0.00021795,3]
[348112901,1736326236454,-500.0,0.00021795,3]
[348112902,1736326236463,-500.0,0.00021795,3]
[348112903,1736326236472,-500.0,0.00021795,3]
[348112904,1736326236482,-500.0,0.00021795,3]
[348112905,1736326236493,-500.0,0.00021795,3]
[348112906,1736326236502,-500.0,0.00021795,3]
[348112907,1736326236512,-500.0,0.00021795,3]
[348112908,1736326236522,-500.0,0.00021795,3]
[348112909,1736326236532,-500.0,0.00021795,3]
[348112910,1736326236542,-500.0,0.00021795,3]
[348112911,1736326236552,-500.0,0.00021795,3]
[348112912,1736326236562,-500.0,0.00021795,3]
[348112913,1736326236573,-500.0,0.00021795,3]
[348112914,1736326236582,-264.67591694,0.00021796,3]
[348112915,1736326236594,-558.52996708,0.00021796,3]
[348112916,1736326236604,-500.0,0.00021796,3]
[348112917,1736326236615,-500.0,0.00021796,3]
[348112918,1736326236626,-465.99,0.00021796,3]
[348112919,1736326236711,-400.41524094,0.00021796,3]
[348112920,1736326236721,-177.42,0.00021796,3]
[348112921,1736326236731,-500.0,0.00021796,3]
[348112922,1736326236740,-500.0,0.00021796,3]
[348112923,1736326236751,-515.22108745,0.00021796,3]
[348112924,1736326236760,-500.0,0.00021796,3]
[348112925,1736326236769,-6781.73,0.00021796,3]
[348112926,1736326236779,-500.0,0.00021796,3]
[348112927,1736326236788,-151.0,0.00021796,2]
[348112928,1736326236798,-151.0,0.00021796,2]
[348112929,1736326236807,-500.0,0.00021796,3]
[348112930,1736326236817,-500.0,0.00021796,3]
[348112931,1736326236827,-500.0,0.00021796,3]
[348112932,1736326236836,-151.0,0.00021796,2]
[348112933,1736326236845,-500.0,0.00021799,3]
[348112934,1736326236854,-500.0,0.00021799,3]
[348112935,1736326236864,-500.0,0.00021799,3]
[348112936,1736326236874,-500.0,0.00021799,3]
[348112937,1736326236885,-398.46889614,0.00021799,3]
[348112938,1736326236894,-9649.58,0.00021799,3]
[348112939,1736326236904,-289.14533119,0.00021816,2]
[348112940,1736326236913,-1987.67943338,0.00021831,2]
[348112941,1736326236922,-500.0,0.00021898,3]
[348112942,1736326236931,-151.0,0.000219,3]
[348112943,1736326236941,-599.545,0.000219,2]
[348112944,1736326236951,-393.16894189,0.000219,2]
[348112945,1736326236961,-1987.67943338,0.00021934,2]
[348112946,1736326236970,-1314.87503411,0.00021939,2]
[348112947,1736326236979,-15596.69702609,0.00021951,2]
[348112948,1736326236989,-151.0,0.00021999,7]
[348112949,1736326237001,-151.0,0.00021999,7]
[348112950,1736326237011,-151.0,0.00021999,7]
[348112951,1736326237020,-120332.09187743,0.00022,3]
[348112952,1736326237031,-22692.30496703,0.00022,3]
[348112953,1736326237047,-1543.43110266,0.00022,3]
[348112988,1736326239985,-1102.39031963,0.00022,3]
[348113563,1736326397313,150.0,0.00019136,2]
[348113564,1736326422457,150.0,0.000199,2]
[348113566,1736326582562,584.7826849,0.00019973,2]
[348113567,1736326649119,165.567579,0.00013973,2]
[348113568,1736326694120,302.8788636,0.00019873,2]
[348113569,1736326723591,150.0,0.000199,2]
[348113570,1736326752496,355.75011655,0.0002,8]
[348113571,1736326923355,204.532353,0.00019972,2]
[348113572,1736326958863,1250.1551929,0.00019972,2]
[348113573,1736327228018,9001.3489124,0.00019972,2]
[348113574,1736327236169,-153.0,0.00020255,2]
[348113575,1736327236200,-238.22506761,0.00020872,2]
[348113576,1736327236233,-565.0,0.0002097,2]
[348113577,1736327236255,-208.845,0.00020971,2]
[348113578,1736327236278,-500.0,0.00020971,3]
[348113579,1736327236299,-520.23,0.00020971,3]
[348113580,1736327236321,-9.630504,0.00020971,3]
[348113581,1736327239087,-490.369496,0.00020971,3]
[348113582,1736327239108,-500.0,0.00020971,3]
[348113583,1736327239130,-504.03216855,0.00020971,3]
[348113584,1736327239150,-503.55601877,0.00020971,3]
[348113585,1736327239172,-500.0,0.00020971,3]
[348113586,1736327239195,-500.0,0.00020971,3]
[348113587,1736327239218,-106.23188941,0.00020971,3]
[348113588,1736327253293,-388.66470364,0.00020971,3]
[348113589,1736327253323,-5.10340695,0.00020971,3]
[348113590,1736327253346,-556.71422409,0.00020971,3]
[348113591,1736327253370,-399.3839155,0.00020971,3]
[348113592,1736327287146,162.395768,0.00019699,2]
[348113593,1736327368124,-248.42054496,0.00020554,2]
[348113632,1736327432313,-30.2073124,0.00020554,2]
[348113635,1736327432326,-273.45614264,0.00020762,2]
[348113637,1736327432339,-790.60986465,0.00020819,2]
[348113640,1736327432351,-208.44693415,0.00020871,2]
[348113641,1736327432361,-500.0,0.0002097,3]
[348113643,1736327432372,-500.0,0.0002097,3]
[348113646,1736327432383,-500.0,0.0002097,3]
[348113648,1736327432395,-500.0,0.0002097,3]
[348113650,1736327432405,-103.07795682,0.00020971,3]
[348113652,1736327432417,-500.0,0.00020971,3]
[348113654,1736327432428,-433.6907505,0.00020971,3]
[348113656,1736327432439,-500.0,0.00020971,3]
[348113659,1736327432450,-156.53051413,0.00020971,3]
[348113661,1736327432460,-513.02970418,0.00020971,3]
[348113663,1736327432470,-515.14511311,0.00020971,3]
[348113665,1736327432483,-504.37229014,0.00020971,3]
[348113667,1736327432494,-501.31531326,0.00020971,3]
[348113669,1736327432506,-500.0,0.00020971,3]
[348113671,1736327432517,-500.0,0.00020971,3]
[348113674,1736327432528,-500.0,0.00020971,3]
[348113677,1736327432539,-216.32038287,0.00020971,3]
[348113680,1736327432553,-500.0,0.00020971,3]
[348113684,1736327432564,-500.0,0.00020971,3]
[348113688,1736327432576,-504.14,0.00020971,3]
[348113691,1736327432587,-500.0,0.00020971,3]
[348113694,1736327432598,-515.94489984,0.00020971,3]
[348113697,1736327432610,-500.0,0.00020971,3]
[348113702,1736327432622,-329.70410159,0.00020971,3]
[348113955,1736327438058,-170.29589841,0.00020971,3]
[348113956,1736327438067,-500.0,0.00020971,3]
[348113957,1736327438077,-168.64991234,0.00020971,3]
[348113958,1736327438089,-331.35008766,0.00020971,3]
[348113959,1736327438102,-517.68604139,0.00020971,3]
[348113960,1736327438111,-502.86048209,0.00020971,3]
[348113961,1736327438120,-510.6908202,0.00020971,3]
[348113962,1736327438130,-509.55777234,0.00020971,3]
[348113963,1736327438141,-501.18236668,0.00020971,3]
[348113964,1736327438150,-518.01254791,0.00020971,3]
[348113965,1736327438161,-500.0,0.00020971,3]
[348113966,1736327438173,-504.06436475,0.00020971,3]
[348113967,1736327438183,-503.96571566,0.00020971,3]
[348113968,1736327438192,-500.0,0.00020971,3]
[348113969,1736327438202,-503.35557705,0.00020971,3]
[348113970,1736327438212,-500.0,0.00020971,3]
[348113971,1736327438222,-500.0,0.00020971,3]
[348113972,1736327438231,-500.0,0.00020971,3]
[348113973,1736327438244,-500.0,0.00020971,3]
[348113974,1736327438254,-379.20165578,0.00020971,3]
[348113975,1736327438264,-513.96742283,0.00020971,3]
[348113976,1736327438274,-503.97879751,0.00020971,3]
[348113977,1736327438284,-427.52634815,0.00020971,3]
[348113978,1736327438297,-90.40936749,0.00020971,3]
[348113980,1736327438306,-502.33396852,0.00020971,3]
[348113982,1736327438316,-502.98263348,0.00020971,3]
[348113984,1736327438326,-500.0,0.00020971,3]
[348113986,1736327438335,-500.0,0.00020971,3]
[348113988,1736327438346,-503.45019622,0.00020971,3]
[348113990,1736327438355,-500.0,0.00020971,3]
[348113991,1736327438365,-515.26264991,0.00020971,3]
[348113992,1736327438375,-503.40592493,0.00020971,3]
[348113993,1736327438385,-500.0,0.00020971,3]
[348113994,1736327438395,-500.0,0.00020971,3]
[348113995,1736327438404,-500.0,0.00020971,3]
[348113996,1736327438413,-500.0,0.00020971,3]
[348113997,1736327438424,-510.2844119,0.00020971,3]
[348113998,1736327438434,-501.74571841,0.00020971,3]
[348113999,1736327438444,-500.0,0.00020971,3]
[348114000,1736327438453,-500.0,0.00020971,3]
[348114001,1736327438463,-506.47532817,0.00020971,3]
[348114002,1736327438474,-500.0,0.00020971,3]
[348114003,1736327438484,-503.33007149,0.00020971,3]
[348114004,1736327438494,-601.79834697,0.00020971,3]
[348114005,1736327438505,-505.83177727,0.00020971,3]
[348114006,1736327438514,-503.48727912,0.00020971,3]
[348114007,1736327438524,-503.31103708,0.00020971,3]
[348114008,1736327438534,-500.0,0.00020971,3]
[348114009,1736327438544,-524.16449791,0.00020971,3]
[348114010,1736327438553,-502.90299173,0.00020971,3]
[348114011,1736327438564,-500.0,0.00020971,3]
[348114012,1736327438574,-500.0,0.00020971,3]
[348114013,1736327438584,-500.0,0.00020971,3]
[348114014,1736327438594,-500.0,0.00020971,3]
[348114015,1736327438603,-502.52728249,0.00020971,3]
[348114016,1736327438613,-602.07082985,0.00020971,3]
[348114017,1736327438623,-500.0,0.00020971,3]
[348114018,1736327438633,-500.0,0.00020971,3]
[348114019,1736327438643,-250.03903956,0.00020971,3]
[348114020,1736327438653,-500.0,0.00020971,3]
[348114021,1736327438662,-6128.05,0.00020971,3]
[348114022,1736327438672,-500.0,0.00020971,3]
[348114023,1736327438682,-500.0,0.00020971,3]
[348114024,1736327438692,-236.52116316,0.00020971,3]
[348114025,1736327438701,-500.0,0.00020971,3]
[348114026,1736327438711,-500.0,0.00020971,3]
[348114027,1736327438722,-500.0,0.00020971,3]
[348114028,1736327438732,-500.0,0.00020971,3]
[348114029,1736327438742,-500.0,0.00020971,3]
[348114030,1736327438751,-500.0,0.00020971,3]
[348114031,1736327438761,-500.0,0.00020971,3]
[348114032,1736327438771,-500.0,0.00020971,3]
[348114033,1736327438781,-500.0,0.00020971,3]
[348114034,1736327438791,-500.0,0.00020971,3]
[348114035,1736327438800,-500.0,0.00020971,3]
[348114036,1736327438810,-500.0,0.00020971,3]
[348114037,1736327438819,-500.0,0.00020971,3]
[348114038,1736327438829,-500.0,0.00020971,3]
[348114039,1736327438839,-500.0,0.00020971,3]
[348114040,1736327438849,-500.0,0.00020971,3]
[348114041,1736327438858,-500.0,0.00020971,3]
[348114042,1736327438868,-500.0,0.00020971,3]
[348114043,1736327438878,-500.0,0.00020971,3]
[348114044,1736327438887,-305.45644791,0.00020971,3]
[348114045,1736327438897,-500.0,0.00020971,3]
[348114046,1736327438908,-500.0,0.00020971,3]
[348114047,1736327438918,-506.76393999,0.00020971,3]
[348114048,1736327438929,-501.41694209,0.00020971,3]
[348114049,1736327438938,-500.0,0.00020971,3]
[348114050,1736327438948,-612.28227195,0.00020971,3]
[348114051,1736327438958,-500.0,0.00020971,3]
[348114052,1736327438969,-500.0,0.00020971,3]
[348114053,1736327438979,-500.0,0.00020971,3]
[348114054,1736327438989,-500.0,0.00020971,3]
[348114055,1736327438999,-500.78642165,0.00020971,3]
[348114056,1736327439009,-500.0,0.00020971,3]
[348114057,1736327439019,-500.0,0.00020971,3]
[348114058,1736327439029,-500.0,0.00020971,3]
[348114059,1736327439038,-500.0,0.00020971,3]
[348114060,1736327439048,-500.0,0.00020971,3]
[348114061,1736327439057,-504.25188924,0.00020971,3]
[348114062,1736327439067,-500.0,0.00020971,3]
[348114063,1736327439078,-500.0,0.00020971,3]
[348114064,1736327439088,-500.0,0.00020971,3]
[348114065,1736327439105,-411.23492835,0.00020971,3]
[348114066,1736327439115,-500.82738551,0.00020971,3]
[348114067,1736327439124,-500.0,0.00020971,3]
[348114068,1736327439133,-500.0,0.00020971,3]
[348114069,1736327439144,-500.0,0.00020971,3]
[348114070,1736327439153,-500.0,0.00020971,3]
[348114071,1736327439162,-500.0,0.00020971,3]
[348114072,1736327439171,-500.0,0.00020971,2]
[348114073,1736327439181,-500.0,0.00020971,2]
[348114074,1736327439190,-500.0,0.00020971,2]
[348114075,1736327439199,-500.0,0.00020971,2]
[348114076,1736327439208,-516.86625129,0.00020971,2]
[348114077,1736327439218,-500.0,0.00020971,2]
[348114078,1736327439227,-500.0,0.00020971,2]
[348114079,1736327439236,-474.09431323,0.00020971,2]
[348114080,1736327439245,-500.0,0.00020971,2]
[348114081,1736327439254,-500.0,0.00020971,2]
[348114082,1736327439263,-500.0,0.00020971,2]
[348114083,1736327439272,-500.0,0.00020971,2]
[348114084,1736327439281,-500.0,0.00020971,2]
[348114085,1736327439290,-350.0,0.00020971,2]
[348114086,1736327439299,-500.0,0.00020971,2]
[348114087,1736327439308,-500.0,0.00020971,2]
[348114088,1736327439317,-500.0,0.00020971,2]
[348114089,1736327439326,-500.0,0.00020971,2]
[348114090,1736327439335,-500.0,0.00020971,2]
[348114091,1736327439344,-500.0,0.00020971,2]
[348114092,1736327439353,-500.0,0.00020971,2]
[348114093,1736327439362,-500.0,0.00020971,2]
[348114094,1736327439371,-500.0,0.00020971,2]
[348114095,1736327439380,-500.0,0.00020971,2]
[348114096,1736327439390,-500.0,0.00020971,2]
[348114097,1736327439399,-500.0,0.00020971,2]
[348114098,1736327439409,-500.0,0.00020971,2]
[348114099,1736327439418,-500.0,0.00020971,2]
[348114100,1736327439428,-500.0,0.00020971,2]
[348114101,1736327439437,-500.0,0.00020971,2]
[348114102,1736327439446,-500.0,0.00020971,2]
[348114103,1736327439456,-500.0,0.00020971,2]
[348114104,1736327439466,-500.0,0.00020971,2]
[348114105,1736327439476,-500.0,0.00020971,2]
[348114106,1736327439485,-500.0,0.00020971,2]
[348114107,1736327439494,-634.45947029,0.00020971,2]
[348114108,1736327439504,-500.0,0.00020971,2]
[348114109,1736327439513,-500.0,0.00020971,2]
[348114110,1736327439523,-500.0,0.00020971,2]
[348114111,1736327439532,-500.0,0.00020971,2]
[348114112,1736327439541,-500.0,0.00020971,2]
[348114113,1736327439550,-500.0,0.00020971,2]
[348114114,1736327439559,-500.0,0.00020971,2]
[348114115,1736327439579,-500.0,0.00020971,2]
[348114116,1736327439589,-500.0,0.00020971,2]
[348114117,1736327439599,-500.0,0.00020971,2]
[348114118,1736327439609,-187.1603931,0.00020971,2]
[348114119,1736327439619,-500.0,0.00020971,2]
[348114120,1736327439628,-500.0,0.00020971,2]
[348114121,1736327439638,-500.0,0.00020971,2]
[348114122,1736327439647,-500.0,0.00020971,2]
[348114123,1736327439658,-500.0,0.00020971,2]
[348114125,1736327439668,-500.0,0.00020971,2]
[348114127,1736327439677,-500.0,0.00020971,2]
[348114129,1736327439687,-500.0,0.00020971,2]
[348114130,1736327439697,-500.0,0.00020972,3]
[348114131,1736327439707,-500.0,0.00020972,3]
[348114132,1736327439716,-500.0,0.00020972,3]
[348114133,1736327439727,-508.23488219,0.00020972,3]
[348114134,1736327439868,-500.0,0.00020972,3]
[348114135,1736327439878,-500.0,0.00020972,3]
[348114136,1736327439888,-500.0,0.00020972,3]
[348114137,1736327439897,-500.0,0.00020972,3]
[348114138,1736327439906,-500.86319584,0.00020972,3]
[348114139,1736327439916,-500.0,0.00020972,3]
[348114140,1736327439931,-501.69174417,0.00020972,3]
[348114141,1736327439940,-500.0,0.00020972,3]
[348114142,1736327439950,-502.49008051,0.00020972,3]
[348114143,1736327439959,-500.0,0.00020972,3]
[348114144,1736327439968,-500.0,0.00020972,3]
[348114145,1736327439977,-502.01368748,0.00020972,3]
[348114146,1736327439986,-500.0,0.00020972,3]
[348114147,1736327439995,-503.53697668,0.00020972,3]
[348114148,1736327440004,-500.0,0.00020972,3]
[348114149,1736327440013,-500.0,0.00020972,3]
[348114150,1736327440023,-500.0,0.00020972,3]
[348114151,1736327440032,-500.0,0.00020972,3]
[348114152,1736327440040,-500.0,0.00020972,3]
[348114153,1736327440050,-500.0,0.00020972,3]
[348114154,1736327440059,-500.0,0.00020972,3]
[348114155,1736327440069,-500.0,0.00020972,3]
[348114156,1736327440081,-500.0,0.00020972,3]
[348114157,1736327440091,-500.0,0.00020972,3]
[348114158,1736327440104,-500.0,0.00020972,3]
[348114159,1736327440114,-499.0,0.00020972,2]
[348114160,1736327440123,-637.03,0.00020972,3]
[348114161,1736327440134,-500.0,0.00020973,2]
[348114162,1736327440144,-500.0,0.00020973,2]
[348114163,1736327440153,-500.0,0.00020973,3]
[348114164,1736327440162,-500.0,0.00020973,3]
[348114165,1736327440172,-497.41640805,0.00020973,3]
[348114166,1736327440181,-500.0,0.00020973,3]
[348114167,1736327440190,-139.5035762,0.00020973,3]
[348114168,1736327440335,-360.4964238,0.00020973,3]
[348114169,1736327440344,-500.0,0.00020973,3]
[348114170,1736327440353,-255.54063985,0.00020973,3]
[348114171,1736327440362,-500.0,0.00020973,3]
[348114172,1736327440372,-500.0,0.00020973,3]
[348114173,1736327440381,-500.0,0.00020973,3]
[348114174,1736327440390,-500.0,0.00020973,3]
[348114175,1736327440400,-500.0,0.00020973,3]
[348114176,1736327440409,-188.0,0.00020973,2]
[348114177,1736327440418,-508.65558148,0.00020973,3]
[348114178,1736327440428,-500.0,0.00020973,3]
[348114179,1736327440437,-500.0,0.00020973,3]
[348114180,1736327440447,-500.0,0.00020973,3]
[348114181,1736327440456,-534.8472717,0.00020973,3]
[348114182,1736327440465,-500.0,0.00020973,3]
[348114183,1736327440475,-500.0,0.00020973,3]
[348114184,1736327440484,-500.0,0.00020973,3]
[348114185,1736327440494,-500.0,0.00020973,3]
[348114186,1736327440503,-500.0,0.00020973,3]
[348114187,1736327440512,-500.0,0.00020973,3]
[348114188,1736327440521,-500.0,0.00020973,3]
[348114189,1736327440530,-500.0,0.00020973,3]
[348114190,1736327440539,-500.0,0.00020973,3]
[348114191,1736327440548,-500.0,0.00020973,3]
[348114192,1736327440557,-500.0,0.00020973,3]
[348114193,1736327440567,-501.16682236,0.00020973,3]
[348114194,1736327440577,-500.0,0.00020973,3]
[348114195,1736327440586,-388.61912529,0.00020973,3]
[348114196,1736327440595,-500.0,0.00020973,3]
[348114197,1736327440604,-500.0,0.00020973,3]
[348114198,1736327440613,-505.20994744,0.00020973,3]
[348114199,1736327440622,-500.0,0.00020973,3]
[348114200,1736327440632,-500.0,0.00020973,3]
[348114201,1736327440641,-500.0,0.00020973,3]
[348114202,1736327440651,-502.82479724,0.00020973,3]
[348114203,1736327440660,-500.0,0.00020973,3]
[348114204,1736327440670,-500.0,0.00020973,3]
[348114205,1736327440679,-500.0,0.00020973,3]
[348114206,1736327440688,-628.15641816,0.00020973,3]
[348114207,1736327440697,-500.0,0.00020973,3]
[348114208,1736327440706,-500.0,0.00020973,3]
[348114209,1736327440715,-500.0,0.00020973,3]
[348114210,1736327440724,-500.0,0.00020973,3]
[348114211,1736327440733,-500.0,0.00020973,3]
[348114212,1736327440742,-502.03063995,0.00020973,3]
[348114213,1736327440751,-500.0,0.00020973,3]
[348114214,1736327440760,-501.84002435,0.00020973,3]
[348114215,1736327440769,-500.87090485,0.00020973,3]
[348114216,1736327440778,-502.0761363,0.00020973,3]
[348114217,1736327440787,-503.84578056,0.00020973,3]
[348114218,1736327440796,-500.0,0.00020973,3]
[348114219,1736327440805,-502.25344988,0.00020973,3]
[348114220,1736327440815,-502.05234518,0.00020973,3]
[348114221,1736327440824,-502.25937449,0.00020973,3]
[348114222,1736327440833,-502.30277738,0.00020973,3]
[348114223,1736327440842,-500.0,0.00020973,3]
[348114224,1736327440851,-500.0,0.00020973,3]
[348114225,1736327440861,-500.0,0.00020973,3]
[348114226,1736327440870,-500.0,0.00020973,3]
[348114227,1736327440879,-1267.12,0.00020973,3]
[348114228,1736327440888,-493.18412661,0.00020974,3]
[348114229,1736327440898,-501.04457165,0.00020974,3]
[348114230,1736327440907,-500.0,0.00020974,3]
[348114231,1736327440916,-500.0,0.00020974,3]
[348114232,1736327440925,-501.66489959,0.00020974,3]
[348114233,1736327440935,-504.69407092,0.00020974,3]
[348114234,1736327440944,-500.0,0.00020974,3]
[348114235,1736327440953,-500.0,0.00020974,3]
[348114236,1736327440962,-475.48511439,0.00020974,3]
[348114237,1736327440971,-501.62144641,0.00020974,3]
[348114238,1736327440979,-267.02265754,0.00020974,3]
[348114239,1736327440992,-232.97734246,0.00020974,3]
[348114240,1736327441001,-501.34144771,0.00020974,3]
[348114241,1736327441010,-421.25839037,0.00020974,3]
[348114242,1736327441019,-500.31593632,0.00020974,3]
[348114243,1736327441028,-313.06428808,0.00020974,3]
[348114244,1736327441109,-500.0,0.00020971,3]
[348114245,1736327441119,-186.93571192,0.00020974,3]
[348114246,1736327441128,-501.19729162,0.00020974,3]
[348114247,1736327441139,-501.55438602,0.00020974,3]
[348114248,1736327441148,-500.0,0.00020974,3]
[348114249,1736327441157,-500.7051341,0.00020974,3]
[348114250,1736327441166,-501.32419283,0.00020974,3]
[348114251,1736327441178,-165.21368813,0.00020974,3]
[348114252,1736327441187,-500.64756074,0.00020974,3]
[348114253,1736327441197,-500.0,0.00020974,3]
[348114254,1736327441206,-500.0,0.00020974,3]
[348114255,1736327441215,-500.86638931,0.00020974,3]
[348114256,1736327441226,-358.71800949,0.00020974,3]
[348114257,1736327441237,-141.28199051,0.00020974,3]
[348114258,1736327441246,-256.56162415,0.00020974,3]
[348114259,1736327441258,-243.43837585,0.00020974,3]
[348114260,1736327441268,-102.56162415,0.00020974,3]
[348114338,1736327443147,-397.43837585,0.00020974,3]
[348114340,1736327443157,-500.0,0.00020974,3]
[348114342,1736327443167,-221.49825535,0.00020974,3]
[348114344,1736327443176,-541.60011133,0.00020974,3]
[348114346,1736327443186,-9247.51,0.00020974,3]
[348114348,1736327443195,-544.27865979,0.00020974,3]
[348114350,1736327443205,-500.0,0.00020974,3]
[348114352,1736327443214,-500.0,0.00020974,3]
[348114354,1736327443225,-500.0,0.00020974,3]
[348114356,1736327443234,-500.0,0.00020974,3]
[348114358,1736327443243,-593.018,0.0002099,2]
[348114360,1736327443253,-208.44693409,0.00021185,2]
[348114362,1736327443264,-5707.29558905,0.00021198,2]
[348114364,1736327443275,-500.0,0.00021244,3]
[348114366,1736327443284,-500.0,0.00021244,3]
[348114368,1736327443294,-500.0,0.00021244,3]
[348114370,1736327443303,-500.0,0.00021245,3]
[348114372,1736327443313,-500.0,0.00021245,3]
[348114374,1736327443322,-356.91827303,0.00021245,3]
[348114376,1736327443332,-500.0,0.00021245,3]